[Event "24th European Women Club Cup 2019"]
[Site "Ulcinj"]
[Date "2019.11.13"]
[Round "4.27"]
[White "Yakovleva, Tatiana"]
[Black "Koljevic, Nikolina"]
[Result "1-0"]
[ECO "E16"]
[WhiteElo "1942"]
[BlackElo "1902"]
[Annotator "NA"]
[PlyCount "59"]
[EventDate "2019.11.10"]
[EventType "team-tourn"]
[EventCountry "MNE"]
[SourceTitle "playchess.com"]
[Source "ChessBase"]
[SourceQuality "1"]
[WhiteTeam "Hertzeliya"]
[BlackTeam "MNE Woman Chess"]
[TimeControl "40/5400+30:1800+30"]

1. d4 {[%emt 0:00:00]} Nf6 {[%emt 0:00:00]} 2. c4 {[%emt 0:00:00]} e6 {[%emt 0:00:00]} 3. Nf3 {[%emt 0:00:00]} Bb4+ {[%emt 0:00:16]} 4. Bd2 {[%emt 0:00:47]} Qe7 {[%emt 0:01:34]} 5. Nc3 {[%emt 0:03:41]} d5 {[%emt 0:04:01]} 6. c5 {[%emt 0:03:20]} O-O {[%emt 0:01:48]} 7. e3 {[%emt 0:04:55]} b6 {[%emt 0:02:14]} 8. cxb6 {[%emt 0:03:50]} axb6 {[%emt 0:01:39]} 9. a3 {[%emt 0:00:53]} Bxc3 {[%emt 0:02:04]} 10. Bxc3 {[%emt 0:03:33]} Ne4 {[%emt 0:02:59]} 11. Rc1 {[%emt 0:01:58]} Bb7 {[%emt 0:02:41]} 12. Bd3 {[%emt 0:03:00]} Nxc3 {[%emt 0:00:59]} 13. Rxc3 {[%emt 0:00:26]} Rc8 {[%emt 0:05:03]} 14. O-O {[%emt 0:05:12]} Na6 {[%emt 0:10:31]} 15. Qc2 {[%emt 0:06:34]} f5 {[%emt 0:03:12]} 16. Rc1 {[%emt 0:01:31]} c6 {[%emt 0:10:56]} 17. h3 {[%emt 0:03:50]} Nb8 {[%emt 0:08:30]} 18. Ne5 {[%emt 0:03:40]} Qd6 {[%emt 0:01:10]} 19. f4 {[%emt 0:03:08]} Re8 {[%emt 0:05:31]} 20. g4 {[%emt 0:10:57]} g6 {[%emt 0:03:24]} 21. g5 {[%emt 0:01:25]} Kg7 {[%emt 0:04:29]} 22. Qe2 {[%emt 0:05:45]} Rc8 {[%emt 0:02:45]} 23. Qc2 {[%emt 0:01:24]} Re8 {[%emt 0:01:30]} 24. h4 {[%emt 0:01:35]} Ra7 {[%emt 0:01:14]} 25. Qb3 {[%emt 0:03:37]} b5 {[%emt 0:04:53]} 26. Qd1 {[%emt 0:07:50]} b4 {[%emt 0:03:02]} 27. axb4 {[%emt 0:03:08]} Qxb4 {[%emt 0:00:11]} 28. Rb3 {[%emt 0:00:59]} Qd6 {[%emt 0:00:25]} 29. Ra1 {[%emt 0:00:48]} Rxa1 {[%emt 0:04:44]} 30. Rxb7+ {[%emt 0:00:33]} 1-0

[Event "24th European Women Club Cup 2019"]
[Site "Ulcinj"]
[Date "2019.11.13"]
[Round "4.28"]
[White "Rakic, Tijana"]
[Black "Lian, Marina"]
[Result "0-1"]
[ECO "C01"]
[WhiteElo "1680"]
[BlackElo "1855"]
[Annotator "NA"]
[PlyCount "54"]
[EventDate "2019.11.10"]
[EventType "team-tourn"]
[EventCountry "MNE"]
[SourceTitle "playchess.com"]
[Source "ChessBase"]
[SourceQuality "1"]
[WhiteTeam "MNE Woman Chess"]
[BlackTeam "Hertzeliya"]
[TimeControl "40/5400+30:1800+30"]

1. e4 {[%emt 0:00:00]} e6 {[%emt 0:00:00]} 2. d4 {[%emt 0:00:00]} d5 {[%emt 0:00:00]} 3. exd5 {[%emt 0:00:00]} exd5 {[%emt 0:00:00]} 4. Bd3 {[%emt 0:00:00]} c5 {[%emt 0:00:07]} 5. Nf3 {[%emt 0:09:14]} Nc6 {[%emt 0:02:42]} 6. dxc5 {[%emt 0:06:14]} Bxc5 {[%emt 0:00:33]} 7. O-O {[%emt 0:00:17]} Nge7 {[%emt 0:00:50]} 8. h3 {[%emt 0:03:12]} Qb6 {[%emt 0:07:22]} 9. Nc3 {[%emt 0:05:49]} Qd8 {[%emt 0:13:09]} 10. Bf4 {[%emt 0:02:25]} a6 {[%emt 0:01:54]} 11. a3 {[%emt 0:10:30]} O-O {[%emt 0:03:33]} 12. Ng5 {[%emt 0:18:38]} h6 {[%emt 0:09:54]} 13. Qh5 {[%emt 0:04:03]} Nf5 {[%emt 0:08:41]} 14. Bxf5 {[%emt 0:06:05]} Bxf5 {[%emt 0:00:02]} 15. Nf3 {[%emt 0:00:57]} Bxc2 {[%emt 0:06:50]} 16. Qxd5 {[%emt 0:05:05]} Qb6 {[%emt 0:09:37]} 17. Qd2 {[%emt 0:08:12]} Bb3 {[%emt 0:11:24]} 18. Ne4 {[%emt 0:01:28]} Rfd8 {[%emt 0:10:43]} 19. Qc3 {[%emt 0:04:24]} Bd4 {[%emt 0:01:50]} 20. Nxd4 {[%emt 0:00:34]} Nxd4 {[%emt 0:01:11]} 21. Bc7 {[%emt 0:02:31]} Qg6 {[%emt 0:03:04]} 22. Qe3 {[%emt 0:01:56]} Rd7 {[%emt 0:01:20]} 23. Rac1 {[%emt 0:04:01]} Bc2 {[%emt 0:03:37]} 24. Nc5 {[%emt 0:03:21]} Rxc7 {[%emt 0:00:18]} 25. Qxd4 {[%emt 0:00:11]} Rac8 {[%emt 0:00:44]} 26. Nd7 {[%emt 0:00:34]} Be4 {[%emt 0:00:16]} 27. Rxc7 {[%emt 0:00:23]} Qxg2# {[%emt 0:00:02]} 0-1

[Event "24th European Women Club Cup 2019"]
[Site "Ulcinj"]
[Date "2019.11.14"]
[Round "5.1"]
[White "Koneru, Humpy"]
[Black "Dzagnidze, Nana"]
[Result "1-0"]
[ECO "D31"]
[WhiteElo "2577"]
[BlackElo "2502"]
[Annotator "ChessBase"]
[PlyCount "87"]
[EventDate "2019.11.10"]
[EventType "team-tourn"]
[EventCountry "MNE"]
[SourceTitle "playchess.com"]
[Source "ChessBase"]
[SourceQuality "1"]
[WhiteTeam "Cercle d`Echecs"]
[BlackTeam "Nona"]
[TimeControl "40/5400+30:1800+30"]

1. d4 {[%emt 0:00:00]} d5 {[%emt 0:00:00]} 2. c4 {[%emt 0:00:00]} e6 {[%emt 0:00:00]} 3. Nc3 {[%emt 0:00:05]} c6 {[%emt 0:00:00]} 4. e4 {[%emt 0:00:47]} dxe4 {[%emt 0:00:00]} 5. Nxe4 {[%emt 0:00:06]} Bb4+ {[%emt 0:00:18]} 6. Nc3 {[%emt 0:00:21]} c5 {[%emt 0:03:17]} 7. a3 {[%emt 0:05:16]} Bxc3+ {[%emt 0:00:28]} 8. bxc3 {[%emt 0:00:05]} Nf6 {[%emt 0:00:59]} 9. Nf3 {[%emt 0:00:38]} O-O {[%emt 0:06:58]} 10. Bd3 {[%emt 0:03:38]} Nbd7 {[%emt 0:14:09]} 11. O-O {[%emt 0:04:10]} b6 {[%emt 0:02:07]} 12. Ne5 {[%emt 0:12:52]} Bb7 {[%emt 0:00:13]} 13. Bg5 {[%emt 0:04:41]} cxd4 {[%emt 0:15:34]} 14. cxd4 {[%emt 0:20:21]} Qc7 {[%emt 0:05:17]} 15. Re1 {[%emt 0:03:11]} Nxe5 {[%emt 0:02:03]} 16. Rxe5 {[%emt 0:00:30]} Rfd8 {[%emt 0:09:58]} 17. Re3 {[%emt 0:06:11]} b5 {[%emt 0:14:13]} 18. Bxf6 {[%emt 0:19:10]} gxf6 {[%emt 0:00:11]} 19. Qh5 {[%emt 0:01:31]} Kf8 {[%emt 0:00:10]} 20. Qxh7 {[%emt 0:02:40]} Rac8 {[%emt 0:00:38]} 21. d5 {[%emt 0:05:04]} e5 {[%emt 0:00:26]} 22. Bf5 {[%emt 0:01:41]} bxc4 {[%emt 0:00:09]} 23. Bxc8 {[%emt 0:00:39]} Rxc8 {[%emt 0:00:18]} 24. Rd1 {[%emt 0:01:12]} Qd6 {[%emt 0:00:11]} 25. Rg3 {[%emt 0:01:02]} Ke7 {[%emt 0:00:11]} 26. Rg7 {[%emt 0:01:11]} Rf8 {[%emt 0:00:03]} 27. Qe4 {[%emt 0:00:46]} c3 {[%emt 0:00:36]} 28. Qc2 {[%emt 0:01:20]} Qxa3 {[%emt 0:02:49]} 29. d6+ {[%emt 0:00:19]} Ke6 {[%emt 0:00:01]} 30. Rg3 {[%emt 0:00:50]} Qb2 {[%emt 0:07:56]} 31. Rxc3 {[%emt 0:00:16]} Qxc2 {[%emt 0:00:07]} 32. Rxc2 {[%emt 0:00:04]} Bc8 {[%emt 0:05:43]} 33. Rc7 {[%emt 0:00:27]} Bd7 {[%emt 0:00:02]} 34. Rxa7 {[%emt 0:00:13]} f5 {[%emt 0:00:02]} 35. f3 {[%emt 0:01:17]} f4 {[%emt 0:00:06]} 36. Kf2 {[%emt 0:01:22]} Rb8 {[%emt 0:00:15]} 37. h4 {[%emt 0:01:25]} f5 {[%emt 0:02:49]} 38. Re1 {[%emt 0:00:41]} Rh8 {[%emt 0:02:44]} 39. Ra5 {[%emt 0:00:25]} Rxh4 {[%emt 0:00:09]} 40. Rexe5+ {[%emt 0:00:00]} Kxd6 {[%emt 0:00:00]} 41. Rad5+ {[%emt 0:00:56]} Kc6 {[%emt 0:00:07]} 42. Rd4 {[%emt 0:01:42]} Rh7 {[%emt 0:00:47]} 43. Rxf4 {[%emt 0:02:35]} Rf7 {[%emt 0:00:06]} 44. Rd4 {[%emt 0:00:39] Kd5} 1-0

[Event "24th European Women Club Cup 2019"]
[Site "Ulcinj"]
[Date "2019.11.14"]
[Round "5.3"]
[White "Socko, Monika"]
[Black "Batsiashvili, Nino"]
[Result "0-1"]
[ECO "E12"]
[WhiteElo "2417"]
[BlackElo "2422"]
[Annotator "NA"]
[PlyCount "66"]
[EventDate "2019.11.10"]
[EventType "team-tourn"]
[EventCountry "MNE"]
[SourceTitle "playchess.com"]
[Source "ChessBase"]
[SourceQuality "1"]
[WhiteTeam "Cercle d`Echecs"]
[BlackTeam "Nona"]
[TimeControl "40/5400+30:1800+30"]

1. d4 {[%emt 0:00:00]} Nf6 {[%emt 0:00:00]} 2. c4 {[%emt 0:00:00]} e6 {[%emt 0:00:00]} 3. Nf3 {[%emt 0:00:00]} b6 {[%emt 0:00:00]} 4. Bf4 {[%emt 0:00:00]} Bb7 $11 {[%emt 0:00:00]} 5. e3 {[%emt 0:00:17]} Bb4+ {[%emt 0:00:00]} 6. Nbd2 {[%emt 0:00:35]} O-O {[%emt 0:01:45]} 7. h3 {[%emt 0:01:25]} d5 {[%emt 0:01:12]} 8. Rc1 {[%emt 0:04:20]} c5 {[%emt 0:04:59]} 9. a3 {[%emt 0:03:43]} Bxd2+ {[%emt 0:06:30]} 10. Qxd2 {[%emt 0:00:38]} cxd4 {[%emt 0:00:14]} 11. Qxd4 {[%emt 0:05:04]} Nc6 {[%emt 0:00:16]} 12. Qd1 {[%emt 0:00:38]} Qe7 {[%emt 0:04:40]} 13. Be2 {[%emt 0:11:08]} Rfd8 {[%emt 0:02:17]} 14. Qa4 {[%emt 0:05:38]} e5 {[%emt 0:10:44]} 15. cxd5 {[%emt 0:01:14]} Rxd5 {[%emt 0:00:23]} 16. Bg3 {[%emt 0:15:40]} e4 {[%emt 0:06:36]} 17. Nd4 {[%emt 0:02:32]} Nxd4 {[%emt 0:00:50]} 18. exd4 {[%emt 0:00:03]} e3 {[%emt 0:06:49]} 19. O-O {[%emt 0:01:01]} Rg5 {[%emt 0:00:23]} 20. Qb3 {[%emt 0:15:05]} Re8 {[%emt 0:14:52]} 21. Kh2 {[%emt 0:09:53]} h5 {[%emt 0:03:07]} 22. h4 {[%emt 0:02:53]} Bd5 {[%emt 0:07:22]} 23. Qd3 {[%emt 0:06:53]} Ng4+ {[%emt 0:02:09]} 24. Bxg4 {[%emt 0:00:41]} Rxg4 {[%emt 0:00:02]} 25. f3 {[%emt 0:02:45]} Rxg3 {[%emt 0:03:43]} 26. Kxg3 {[%emt 0:00:03]} Qd6+ {[%emt 0:00:07]} 27. f4 {[%emt 0:03:09]} e2 {[%emt 0:06:45]} 28. Rg1 {[%emt 0:00:59]} Re4 {[%emt 0:00:42]} 29. Qd2 {[%emt 0:01:30]} g5 {[%emt 0:02:42]} 30. hxg5 {[%emt 0:02:14]} h4+ {[%emt 0:02:20]} 31. Kg4 {[%emt 0:00:57]} Be6+ {[%emt 0:00:45]} 32. Kxh4 {[%emt 0:02:22]} Rxf4+ {[%emt 0:00:08]} 33. g4 {[%emt 0:00:08]} Rxg4+ {[%emt 0:00:29]} 0-1

[Event "24th European Women Club Cup 2019"]
[Site "Ulcinj"]
[Date "2019.11.14"]
[Round "5.4"]
[White "Khotenashvili, Bela"]
[Black "Daulyte-Cornette, Deimante"]
[Result "1-0"]
[ECO "E15"]
[WhiteElo "2446"]
[BlackElo "2405"]
[Annotator "NA"]
[PlyCount "93"]
[EventDate "2019.11.10"]
[EventType "team-tourn"]
[EventCountry "MNE"]
[SourceTitle "playchess.com"]
[Source "ChessBase"]
[SourceQuality "1"]
[WhiteTeam "Nona"]
[BlackTeam "Cercle d`Echecs"]
[TimeControl "40/5400+30:1800+30"]

1. d4 {[%emt 0:00:00]} Nf6 {[%emt 0:00:00]} 2. c4 {[%emt 0:00:00]} e6 {[%emt 0:00:00]} 3. Nf3 {[%emt 0:00:00]} b6 {[%emt 0:00:15]} 4. g3 {[%emt 0:00:13]} Bb4+ {[%emt 0:01:10]} 5. Bd2 {[%emt 0:00:16]} Bxd2+ {[%emt 0:00:25]} 6. Qxd2 {[%emt 0:00:06]} Ba6 {[%emt 0:00:30]} 7. b3 {[%emt 0:00:11]} O-O {[%emt 0:00:50]} 8. Nc3 {[%emt 0:01:52]} d5 {[%emt 0:00:44]} 9. cxd5 {[%emt 0:00:21]} exd5 {[%emt 0:00:22]} 10. Bg2 {[%emt 0:00:06]} c5 {[%emt 0:01:27]} 11. Ne5 {[%emt 0:00:29]} Bb7 {[%emt 0:47:03]} 12. O-O {[%emt 0:00:58]} Na6 {[%emt 0:03:09]} 13. Rfd1 {[%emt 0:08:08]} Nc7 {[%emt 0:04:00]} 14. dxc5 {[%emt 0:06:27]} bxc5 {[%emt 0:00:12]} 15. Rac1 {[%emt 0:00:56]} Qe7 {[%emt 0:01:04]} 16. Nd3 {[%emt 0:06:26]} Ne6 {[%emt 0:01:50]} 17. Nf4 {[%emt 0:20:34]} Nxf4 {[%emt 0:10:16]} 18. Qxf4 {[%emt 0:00:13]} Rfd8 {[%emt 0:00:11]} 19. Rc2 {[%emt 0:04:01]} Rac8 {[%emt 0:02:37]} 20. Rdc1 {[%emt 0:12:11]} Bc6 {[%emt 0:05:35]} 21. Nd1 {[%emt 0:03:26]} Bb5 {[%emt 0:02:59]} 22. Ne3 {[%emt 0:09:33]} d4 {[%emt 0:10:16]} 23. Nf5 {[%emt 0:00:24]} Qf8 {[%emt 0:00:07]} 24. b4 {[%emt 0:02:22]} Nd5 {[%emt 0:05:30]} 25. Bxd5 {[%emt 0:01:31]} Rxd5 {[%emt 0:00:06]} 26. Rxc5 {[%emt 0:00:32]} Rdxc5 {[%emt 0:00:46]} 27. Rxc5 {[%emt 0:00:21]} Rxc5 {[%emt 0:00:42]} 28. bxc5 {[%emt 0:00:02]} Bxe2 {[%emt 0:00:21]} 29. c6 {[%emt 0:04:12]} Qb4 {[%emt 0:01:05]} 30. h4 {[%emt 0:00:40]} Ba6 {[%emt 0:00:57]} 31. Qe5 {[%emt 0:02:11]} Qf8 {[%emt 0:00:18]} 32. Qxd4 {[%emt 0:02:24]} g6 {[%emt 0:00:29]} 33. Qxa7 {[%emt 0:01:15]} gxf5 {[%emt 0:00:30]} 34. Qxa6 {[%emt 0:00:10]} Qd6 {[%emt 0:00:37]} 35. Qc4 {[%emt 0:01:15]} Qc7 {[%emt 0:00:25]} 36. Qd5 {[%emt 0:01:00]} f4 {[%emt 0:00:27]} 37. Qd7 {[%emt 0:00:20]} Qa5 {[%emt 0:00:41]} 38. Qg4+ {[%emt 0:02:56]} Kf8 {[%emt 0:00:04]} 39. Qxf4 {[%emt 0:00:04]} Qxa2 {[%emt 0:00:14]} 40. Qb8+ {[%emt 0:00:00]} Kg7 {[%emt 0:00:00]} 41. Qe5+ {[%emt 0:01:34]} f6 {[%emt 0:00:34]} 42. Qe7+ {[%emt 0:00:19]} Kg6 {[%emt 0:00:10]} 43. c7 {[%emt 0:00:12]} Qb1+ {[%emt 0:01:16]} 44. Kg2 {[%emt 0:01:05]} Qb7+ {[%emt 0:00:14]} 45. Kh2 {[%emt 0:00:24]} Qc6 {[%emt 0:09:49]} 46. h5+ {[%emt 0:01:10]} Kf5 {[%emt 0:02:33]} 47. Qd8 {[%emt 0:00:21]} 1-0

[Event "24th European Women Club Cup 2019"]
[Site "Ulcinj"]
[Date "2019.11.14"]
[Round "5.8"]
[White "Osmak, Iulija"]
[Black "Rodshtein, Tereza"]
[Result "1-0"]
[ECO "D10"]
[WhiteElo "2401"]
[BlackElo "2195"]
[Annotator "NA"]
[PlyCount "87"]
[EventDate "2019.11.10"]
[EventType "team-tourn"]
[EventCountry "MNE"]
[SourceTitle "playchess.com"]
[Source "ChessBase"]
[SourceQuality "1"]
[WhiteTeam "Kyiv"]
[BlackTeam "Novy Bor"]
[TimeControl "40/5400+30:1800+30"]

1. d4 {[%emt 0:00:00]} d5 {[%emt 0:00:00]} 2. c4 {[%emt 0:00:00]} c6 {[%emt 0:00:00]} 3. cxd5 {[%emt 0:00:00]} cxd5 {[%emt 0:00:03]} 4. Nc3 {[%emt 0:00:00]} Nf6 {[%emt 0:00:16]} 5. Bf4 {[%emt 0:00:00]} Nc6 {[%emt 0:00:35]} 6. e3 {[%emt 0:00:00]} Bf5 {[%emt 0:01:00]} 7. Qb3 {[%emt 0:00:14]} Na5 {[%emt 0:00:25]} 8. Qa4+ {[%emt 0:00:05]} Bd7 {[%emt 0:00:26]} 9. Qc2 {[%emt 0:00:06]} e6 {[%emt 0:01:15]} 10. Nf3 {[%emt 0:00:05]} Be7 {[%emt 0:01:01]} 11. h3 {[%emt 0:00:53]} Ne4 {[%emt 0:00:32]} 12. Bd3 {[%emt 0:00:26]} f5 {[%emt 0:01:18]} 13. O-O {[%emt 0:01:43]} O-O {[%emt 0:07:49]} 14. Nxd5 {[%emt 0:07:15]} exd5 {[%emt 0:00:49]} 15. Bc7 {[%emt 0:00:09]} Qe8 {[%emt 0:04:40]} 16. Bxa5 {[%emt 0:00:23]} Bd6 {[%emt 0:00:49]} 17. Qb3 {[%emt 0:03:30]} Be6 {[%emt 0:26:49]} 18. Bb4 {[%emt 0:08:28]} Qe7 {[%emt 0:02:28]} 19. Bxd6 {[%emt 0:01:37]} Nxd6 {[%emt 0:00:47]} 20. Qa3 {[%emt 0:06:29]} a6 {[%emt 0:09:32]} 21. Rfe1 {[%emt 0:05:41]} Rad8 {[%emt 0:01:28]} 22. Rac1 {[%emt 0:02:58]} Qf6 {[%emt 0:01:42]} 23. Bf1 {[%emt 0:01:28]} g5 {[%emt 0:03:09]} 24. Ne5 {[%emt 0:01:48]} g4 {[%emt 0:03:27]} 25. g3 {[%emt 0:11:32]} f4 {[%emt 0:05:56]} 26. exf4 {[%emt 0:02:35]} gxh3 {[%emt 0:00:07]} 27. Qf3 {[%emt 0:01:17]} Kh8 {[%emt 0:06:26]} 28. Qh5 {[%emt 0:04:03]} Nf5 {[%emt 0:08:51]} 29. Ng4 {[%emt 0:22:07]} Qf7 {[%emt 0:07:08]} 30. Qxf7 {[%emt 0:00:46]} Bxf7 {[%emt 0:00:02]} 31. Rcd1 {[%emt 0:05:44]} Bh5 {[%emt 0:01:23]} 32. Bxh3 {[%emt 0:00:05]} Rc8 {[%emt 0:04:31]} 33. Rd2 {[%emt 0:01:17]} Rc4 {[%emt 0:00:12]} 34. Re5 {[%emt 0:04:37]} Nxd4 {[%emt 0:01:17]} 35. Rxd4 {[%emt 0:01:23]} Rxd4 {[%emt 0:00:17]} 36. Rxh5 {[%emt 0:00:02]} Rd1+ {[%emt 0:00:08]} 37. Kg2 {[%emt 0:00:46]} d4 {[%emt 0:00:06]} 38. Ne5 {[%emt 0:00:53]} Rf6 {[%emt 0:00:56]} 39. Rf5 {[%emt 0:01:41]} Rb6 {[%emt 0:01:15]} 40. Rg5 {[%emt 0:00:00]} Rf6 {[%emt 0:00:00]} 41. Be6 {[%emt 0:11:01]} h6 {[%emt 0:01:16]} 42. Rg8+ {[%emt 0:00:57]} Kh7 {[%emt 0:00:05]} 43. Bb3 {[%emt 0:00:04]} Rd2 {[%emt 0:01:01]} 44. Nd7 {[%emt 0:00:32]} 1-0

[Event "24th European Women Club Cup 2019"]
[Site "Ulcinj"]
[Date "2019.11.14"]
[Round "5.9"]
[White "Mammadzada, Gunay"]
[Black "Gunina, Valentina"]
[Result "1-0"]
[ECO "B18"]
[WhiteElo "2427"]
[BlackElo "2509"]
[Annotator "ChessBase"]
[PlyCount "109"]
[EventDate "2019.11.10"]
[EventType "team-tourn"]
[EventCountry "MNE"]
[SourceTitle "playchess.com"]
[Source "ChessBase"]
[SourceQuality "1"]
[WhiteTeam "Odlar Yurdu"]
[BlackTeam "Maribor"]
[TimeControl "40/5400+30:1800+30"]

1. e4 {[%emt 0:00:00]} c6 {[%emt 0:00:00]} 2. d4 {[%emt 0:00:00]} d5 {[%emt 0:00:00]} 3. Nc3 {[%emt 0:00:00]} dxe4 {[%emt 0:00:00]} 4. Nxe4 {[%emt 0:00:03]} Bf5 {[%emt 0:00:00]} 5. Ng3 {[%emt 0:00:05]} Bg6 {[%emt 0:00:00]} 6. h4 {[%emt 0:00:16]} h6 {[%emt 0:00:00]} 7. Nf3 {[%emt 0:00:04]} e6 {[%emt 0:00:01]} 8. Ne5 {[%emt 0:00:47]} Bh7 {[%emt 0:00:09]} 9. Bd3 {[%emt 0:05:03]} Bxd3 {[%emt 0:00:38]} 10. Qxd3 {[%emt 0:00:10]} Nf6 {[%emt 0:01:19]} 11. O-O {[%emt 0:09:29]} Be7 {[%emt 0:04:00]} 12. Rd1 {[%emt 0:14:43]} Nbd7 {[%emt 0:00:45]} 13. Nxd7 {[%emt 0:03:51]} Qxd7 {[%emt 0:01:00]} 14. c4 {[%emt 0:03:00]} O-O-O {[%emt 0:05:40]} 15. Qf3 {[%emt 0:03:43]} Rhg8 {[%emt 0:06:55]} 16. Bf4 {[%emt 0:09:15]} g5 {[%emt 0:07:14]} 17. hxg5 {[%emt 0:03:23]} hxg5 {[%emt 0:00:02]} 18. Be5 {[%emt 0:00:09]} g4 {[%emt 0:00:24]} 19. Qf4 {[%emt 0:08:16]} Nh7 {[%emt 0:00:34]} 20. Qxf7 {[%emt 0:05:15]} Ng5 {[%emt 0:00:21]} 21. Qf4 {[%emt 0:00:06]} Rdf8 {[%emt 0:00:55]} 22. Qe3 {[%emt 0:01:51]} Bd8 {[%emt 0:10:22]} 23. d5 {[%emt 0:05:36]} b6 {[%emt 0:16:28]} 24. dxc6 {[%emt 0:04:51]} Qxc6 {[%emt 0:00:07]} 25. Rd6 {[%emt 0:00:13]} Qc5 {[%emt 0:07:15]} 26. Qxc5+ {[%emt 0:06:22]} bxc5 {[%emt 0:00:03]} 27. Re1 {[%emt 0:00:52]} Rg6 {[%emt 0:02:57]} 28. Ne4 {[%emt 0:04:18]} Nf7 {[%emt 0:01:26]} 29. Rc6+ {[%emt 0:02:09]} Kb7 {[%emt 0:01:40]} 30. Rxe6 {[%emt 0:01:51]} Rxe6 {[%emt 0:02:55]} 31. Nxc5+ {[%emt 0:00:10]} Kc8 {[%emt 0:00:27]} 32. Nxe6 {[%emt 0:00:39]} Ba5 {[%emt 0:04:53]} 33. Nxf8 {[%emt 0:02:25]} Bxe1 {[%emt 0:00:06]} 34. Bd4 {[%emt 0:00:28]} Nd6 {[%emt 0:00:34]} 35. b3 {[%emt 0:01:24]} a5 {[%emt 0:01:18]} 36. Kf1 {[%emt 0:00:56]} Bb4 {[%emt 0:00:05]} 37. Nh7 {[%emt 0:01:43]} a4 {[%emt 0:01:03]} 38. g3 {[%emt 0:02:06]} Ne4 {[%emt 0:04:16]} 39. Nf6 {[%emt 0:02:57]} Nd2+ {[%emt 0:00:05]} 40. Ke2 {[%emt 0:00:00]} axb3 {[%emt 0:00:00]} 41. axb3 {[%emt 0:00:18]} Nxb3 {[%emt 0:01:01]} 42. Kd3 {[%emt 0:02:54]} Ba5 {[%emt 0:00:15]} 43. Nxg4 {[%emt 0:00:09]} Kd7 {[%emt 0:00:35]} 44. f4 {[%emt 0:02:47]} Ke6 {[%emt 0:00:32]} 45. Ne3 {[%emt 0:01:02]} Nc1+ {[%emt 0:00:22]} 46. Ke4 {[%emt 0:00:20]} Nb3 {[%emt 0:00:55]} 47. f5+ {[%emt 0:00:43]} Kf7 {[%emt 0:00:07]} 48. g4 {[%emt 0:01:37]} Nd2+ {[%emt 0:00:05]} 49. Kd5 {[%emt 0:00:31]} Nf3 {[%emt 0:00:21]} 50. c5 {[%emt 0:00:11]} Bc7 {[%emt 0:00:30]} 51. c6 {[%emt 0:00:27]} Ke7 {[%emt 0:00:22]} 52. Bc5+ {[%emt 0:00:05]} Kd8 {[%emt 0:00:39]} 53. Bd6 {[%emt 0:01:17]} Bb6 {[%emt 0:00:04]} 54. Nc4 {[%emt 0:00:38]} Bf2 {[%emt 0:00:30]} 55. Ne5 {[%emt 0:00:17]} 1-0

[Event "24th European Women Club Cup 2019"]
[Site "Ulcinj"]
[Date "2019.11.14"]
[Round "5.10"]
[White "Caglar, Sila"]
[Black "Fataliyeva, Ulviyya"]
[Result "0-1"]
[ECO "C03"]
[WhiteElo "2242"]
[BlackElo "2368"]
[Annotator "NA"]
[PlyCount "64"]
[EventDate "2019.11.10"]
[EventType "team-tourn"]
[EventCountry "MNE"]
[SourceTitle "playchess.com"]
[Source "ChessBase"]
[SourceQuality "1"]
[WhiteTeam "Maribor"]
[BlackTeam "Odlar Yurdu"]
[TimeControl "40/5400+30:1800+30"]

1. e4 {[%emt 0:00:00]} e6 {[%emt 0:00:00]} 2. d4 {[%emt 0:00:00]} d5 {[%emt 0:00:00]} 3. Nd2 {[%emt 0:00:00]} Be7 {[%emt 0:00:00]} 4. e5 {[%emt 0:00:02]} c5 {[%emt 0:00:00]} 5. c3 {[%emt 0:00:04]} Nc6 {[%emt 0:00:00]} 6. Bd3 {[%emt 0:00:38]} Bd7 {[%emt 0:08:16]} 7. Ne2 {[%emt 0:00:34]} cxd4 {[%emt 0:05:34]} 8. cxd4 {[%emt 0:00:09]} Nh6 {[%emt 0:00:07]} 9. Nf3 {[%emt 0:04:20]} Nf5 {[%emt 0:02:38]} 10. O-O {[%emt 0:01:36]} Rc8 {[%emt 0:04:08]} 11. Bd2 {[%emt 0:10:15]} O-O {[%emt 0:05:44]} 12. Rc1 {[%emt 0:03:48]} Kh8 {[%emt 0:06:10]} 13. Bc3 {[%emt 0:05:30]} b5 {[%emt 0:02:08]} 14. Ng3 {[%emt 0:02:24]} b4 {[%emt 0:10:55]} 15. Bd2 {[%emt 0:25:36]} Ncxd4 {[%emt 0:14:10]} 16. Nxd4 {[%emt 0:00:42]} Nxd4 {[%emt 0:00:07]} 17. Qg4 {[%emt 0:00:40]} Nc6 {[%emt 0:01:16]} 18. Rce1 {[%emt 0:03:00]} g6 {[%emt 0:04:21]} 19. Qh3 {[%emt 0:06:16]} f5 {[%emt 0:04:47]} 20. exf6 {[%emt 0:00:30]} Rxf6 {[%emt 0:00:11]} 21. Bg5 {[%emt 0:07:07]} e5 {[%emt 0:00:11]} 22. Qh6 {[%emt 0:00:19]} Re6 {[%emt 0:04:03]} 23. f4 {[%emt 0:04:05]} e4 {[%emt 0:05:18]} 24. Nxe4 {[%emt 0:03:17]} dxe4 {[%emt 0:00:39]} 25. Bxe4 {[%emt 0:00:35]} Qf8 {[%emt 0:06:06]} 26. Qh4 {[%emt 0:00:32]} Re8 {[%emt 0:01:58]} 27. Bxc6 {[%emt 0:06:45]} Bxg5 {[%emt 0:01:41]} 28. Qxg5 {[%emt 0:04:10]} Rxe1 {[%emt 0:07:03]} 29. Bxd7 {[%emt 0:00:07]} Qd6 {[%emt 0:00:09]} 30. Bb5 {[%emt 0:02:28]} Qb6+ {[%emt 0:00:06]} 31. Kh1 {[%emt 0:00:05]} Rxf1+ {[%emt 0:00:03]} 32. Bxf1 {[%emt 0:00:02]} Re1 {[%emt 0:00:04]} 0-1

[Event "24th European Women Club Cup 2019"]
[Site "Ulcinj"]
[Date "2019.11.14"]
[Round "5.11"]
[White "Mammadova, Gulnar"]
[Black "Vidic, Teja"]
[Result "1-0"]
[ECO "B20"]
[WhiteElo "2369"]
[BlackElo "2189"]
[Annotator "NA"]
[PlyCount "61"]
[EventDate "2019.11.10"]
[EventType "team-tourn"]
[EventCountry "MNE"]
[SourceTitle "playchess.com"]
[Source "ChessBase"]
[SourceQuality "1"]
[WhiteTeam "Odlar Yurdu"]
[BlackTeam "Maribor"]
[TimeControl "40/5400+30:1800+30"]

1. e4 {[%emt 0:00:00]} c5 {[%emt 0:00:00]} 2. b3 {[%emt 0:00:00]} d6 {[%emt 0:02:42]} 3. Bb2 {[%emt 0:00:00]} e5 {[%emt 0:00:17]} 4. Bb5+ {[%emt 0:01:25]} Nc6 {[%emt 0:01:53]} 5. Ne2 {[%emt 0:00:42]} Nge7 {[%emt 0:07:35]} 6. O-O {[%emt 0:00:53]} g6 {[%emt 0:00:24]} 7. c3 {[%emt 0:02:43]} Bg7 {[%emt 0:00:30]} 8. d4 {[%emt 0:05:53]} O-O {[%emt 0:01:04]} 9. Na3 {[%emt 0:01:58]} a6 {[%emt 0:03:22]} 10. Bxc6 {[%emt 0:01:00]} Nxc6 {[%emt 0:00:13]} 11. Qd2 {[%emt 0:03:00]} b5 {[%emt 0:03:09]} 12. Nc2 {[%emt 0:06:46]} Bb7 {[%emt 0:06:53]} 13. d5 {[%emt 0:09:02]} Ne7 {[%emt 0:00:42]} 14. f4 {[%emt 0:01:44]} f5 {[%emt 0:11:37]} 15. c4 {[%emt 0:07:19]} Nc8 {[%emt 0:11:42]} 16. exf5 {[%emt 0:08:25]} gxf5 {[%emt 0:01:01]} 17. fxe5 {[%emt 0:04:07]} dxe5 {[%emt 0:00:20]} 18. Ng3 {[%emt 0:01:48]} Nd6 {[%emt 0:01:51]} 19. Rae1 {[%emt 0:01:19]} Qe7 {[%emt 0:11:45]} 20. Nh5 {[%emt 0:02:38]} Bh8 {[%emt 0:02:00]} 21. Qe3 {[%emt 0:04:28]} Rae8 {[%emt 0:02:57]} 22. Qg3+ {[%emt 0:05:05]} Kf7 {[%emt 0:00:50]} 23. Ne3 {[%emt 0:00:30]} Rg8 {[%emt 0:07:02]} 24. Nxf5 {[%emt 0:03:32]} Rxg3 {[%emt 0:00:06]} 25. Nxe7+ {[%emt 0:00:10]} Kxe7 {[%emt 0:00:07]} 26. hxg3 {[%emt 0:04:00]} bxc4 {[%emt 0:00:50]} 27. Bxe5 {[%emt 0:00:18]} Bxe5 {[%emt 0:00:08]} 28. Rxe5+ {[%emt 0:00:04]} Kd8 {[%emt 0:00:10]} 29. Rxe8+ {[%emt 0:00:29]} Kxe8 {[%emt 0:00:10]} 30. bxc4 {[%emt 0:02:19]} Nxc4 {[%emt 0:00:12]} 31. Rc1 {[%emt 0:00:21]} 1-0